fUSD/lending_fUSD_20260225
["ID","MTS","AMOUNT","RATE_DAILY","PERIOD"]
[406631317,1771997814131,500.0,0.00045818,120]
[406631318,1771997814356,500.0,0.00045818,120]
[406631319,1771997814596,500.0,0.00045818,120]
[406631320,1771997814941,500.0,0.00045818,120]
[406631321,1771997815173,500.0,0.00045818,120]
[406631322,1771997815666,500.0,0.00045818,120]
[406631323,1771997815996,500.0,0.00045818,120]
[406631324,1771997816472,500.0,0.00045818,120]
[406631325,1771997816556,619.59904813,0.00045818,120]
[406631326,1771997830541,200.0,0.00045818,120]
[406631327,1771997831135,200.0,0.00045818,120]
[406631328,1771997845832,500.0,0.00045818,120]
[406631329,1771997856085,500.0,7.957e-05,2]
[406631330,1771997951488,150.0,0.00045842,120]
[406631332,1771998143782,500.0,0.00045842,120]
[406631334,1771998439900,1172.09808162,8.7e-05,3]
[406631335,1771998439925,27.90191838,8.7e-05,3]
[406631336,1771998441981,2500.0,8.8e-05,3]
[406631337,1771998444074,3800.0,8.9e-05,3]
[406631338,1771998445215,500.0,0.00045842,120]
[406631339,1771998446471,5100.0,9e-05,3]
[406631340,1771998455174,3712.97442969,8.5e-05,3]
[406631341,1771998455237,7335.76234074,8.5e-05,3]
[406631342,1771998455272,17964.87214847,8.5e-05,3]
[406631343,1771998455328,10012.22018878,8.5e-05,3]
[406631344,1771998455379,15608.79433952,8.5e-05,3]
[406631345,1771998552848,10000.01,7.916e-05,2]
[406631346,1771998552870,4665.23,7.916e-05,2]
[406631347,1771998585799,500.0,7.672e-05,2]
[406631350,1771998631664,-1200.0,8.218e-05,2]
[406631351,1771998631674,-209.245379,8.219e-05,2]
[406631352,1771998631684,-3846.59,8.219e-05,2]
[406631353,1771998631693,-1000.0,8.219e-05,2]
[406631354,1771998631703,-300.0,8.389e-05,2]
[406631355,1771998631712,-178.17,8.39e-05,2]
[406631356,1771998631722,-864.25583564,8.39e-05,2]
[406631357,1771998631731,-500.0,8.408e-05,2]
[406631358,1771998631740,-250.0,8.413e-05,2]
[406631359,1771998631750,-250.0,8.458e-05,2]
[406631360,1771998631759,-500.0,8.463e-05,2]
[406631361,1771998631768,-864.25583562,8.474e-05,2]
[406631362,1771998631777,-4530.206,8.484e-05,2]
[406631363,1771998631787,-366.552,8.484e-05,2]
[406631364,1771998631796,-500.0,8.518e-05,2]
[406631365,1771998631804,-500.0,8.556e-05,2]
[406631366,1771998631814,-500.0,8.556e-05,2]
[406631367,1771998631823,-500.0,8.556e-05,2]
[406631368,1771998631831,-290.1155594,8.556e-05,2]
[406631369,1771998631840,-500.0,8.556e-05,2]
[406631370,1771998631850,-500.0,8.556e-05,2]
[406631371,1771998631859,-203.31027754,8.556e-05,2]
[406631372,1771998631868,-476.31120532,8.556e-05,2]
[406631373,1771998631877,-500.0,8.556e-05,2]
[406631374,1771998631886,-500.0,8.556e-05,2]
[406631375,1771998631895,-500.0,8.556e-05,2]
[406631376,1771998631904,-500.0,8.556e-05,2]
[406631377,1771998631914,-500.0,8.556e-05,2]
[406631378,1771998631923,-500.0,8.556e-05,2]
[406631379,1771998631932,-500.0,8.556e-05,2]
[406631380,1771998631942,-500.0,8.556e-05,2]
[406631381,1771998631952,-500.0,8.556e-05,2]
[406631382,1771998631961,-500.0,8.556e-05,2]
[406631383,1771998631970,-500.0,8.556e-05,2]
[406631384,1771998631979,-500.0,8.556e-05,2]
[406631386,1771998631989,-500.0,8.556e-05,2]
[406631387,1771998631998,-500.0,8.556e-05,2]
[406631389,1771998632007,-500.0,8.556e-05,2]
[406631391,1771998632017,-500.0,8.556e-05,2]
[406631392,1771998632026,-500.0,8.556e-05,2]
[406631393,1771998632035,-535.572,8.557e-05,2]
[406631394,1771998632045,-2000000.0,8.557e-05,2]
[406631395,1771998632054,-2500.0,8.557e-05,2]
[406631396,1771998632063,-864.25583562,8.557e-05,2]
[406631397,1771998632073,-500.0,8.572e-05,2]
[406631398,1771998632082,-500.0,8.627e-05,2]
[406631399,1771998632091,-3664.0,8.63e-05,2]
[406631400,1771998632100,-150.0,8.655e-05,2]
[406631401,1771998632109,-500.0,8.655e-05,2]
[406631402,1771998632118,-936.35900762,8.656e-05,2]
[406631403,1771998632128,-500.0,8.682e-05,2]
[406631404,1771998632137,-4999.99,8.682e-05,2]
[406631405,1771998632148,-9999.99,8.682e-05,2]
[406631406,1771998632164,-764.0,8.682e-05,2]
[406631407,1771998632173,-9999.99,8.682e-05,2]
[406631408,1771998632182,-9999.99,8.682e-05,2]
[406631409,1771998632192,-999.99,8.682e-05,2]
[406631410,1771998632204,-429.78,8.682e-05,2]
[406631411,1771998632215,-150.99,8.682e-05,2]
[406631412,1771998632224,-2108.08,8.682e-05,2]
[406631413,1771998632233,-1205.35,8.682e-05,2]
[406631414,1771998632243,-150.99,8.682e-05,2]
[406631415,1771998632252,-299.99,8.682e-05,2]
[406631416,1771998632261,-499.99,8.682e-05,2]
[406631417,1771998632270,-179634.79,8.682e-05,2]
[406631418,1771998632280,-9999.99,8.682e-05,2]
[406631419,1771998632289,-13127.76,8.682e-05,2]
[406631420,1771998632299,-9999.99,8.682e-05,2]
[406631421,1771998632309,-500.0,8.737e-05,2]
[406631422,1771998632319,-164.66750726,8.792e-05,2]
[406631423,1771998632330,-178.17,8.856e-05,2]
[406631424,1771998632340,-1852.42,8.888e-05,2]
[406631425,1771998632350,-500.0,8.929e-05,2]
[406631426,1771998632359,-1000.0,8.999e-05,2]
[406631427,1771998632368,-7084.59419129,9.003e-05,2]
[406631428,1771998632377,-1680.0,9.04e-05,2]
[406631429,1771998632386,-1500.0,9.145e-05,2]
[406631430,1771998632395,-500.0,9.203e-05,2]
[406631431,1771998632403,-307.0,9.227e-05,2]
[406631432,1771998632413,-250.0,9.228e-05,2]
[406631433,1771998632422,-1000.0,9.247e-05,2]
[406631434,1771998632430,-419.0,9.295e-05,2]
[406631435,1771998632439,-32875.3991,9.299e-05,2]
[406631436,1771998632448,-178.17,9.322e-05,2]
[406631437,1771998632458,-12910.9023194,9.322e-05,2]
[406631438,1771998632467,-419.0,9.35e-05,2]
[406631439,1771998632476,-419.0,9.405e-05,2]
[406631440,1771998632485,-419.0,9.459e-05,2]
[406631441,1771998632495,-500.0,9.477e-05,2]
[406631442,1771998632504,-419.0,9.514e-05,2]
[406631443,1771998632673,-255.0,9.52e-05,2]
[406631444,1771998632682,-419.0,9.569e-05,2]
[406631445,1771998632692,-419.0,9.624e-05,2]
[406631446,1771998632701,-763.41669427,9.637e-05,2]
[406631447,1771998632710,-419.0,9.679e-05,2]
[406631448,1771998632720,-261.556724,9.71e-05,2]
[406631449,1771998632729,-419.0,9.733e-05,2]
[406631450,1771998632739,-500.0,9.751e-05,2]
[406631451,1771998632749,-178.17,9.788e-05,2]
[406631452,1771998632758,-419.0,9.788e-05,2]
[406631453,1771998632767,-401.66,9.802e-05,2]
[406631454,1771998632777,-419.0,9.843e-05,2]
[406631455,1771998632786,-600.0,9.895e-05,2]
[406631456,1771998632795,-419.0,9.898e-05,2]
[406631457,1771998632804,-2351.0,9.944e-05,2]
[406631458,1771998632813,-419.0,9.953e-05,2]
[406631459,1771998632823,-1535.67,0.0001,2]
[406631460,1771998632833,-151.0,0.0001,2]
[406631461,1771998632842,-151.0,0.0001,2]
[406631462,1771998632851,-151.0,0.0001,2]
[406631463,1771998632861,-151.0,0.0001,2]
[406631464,1771998632871,-151.0,0.0001,2]
[406631465,1771998632880,-151.0,0.0001,2]
[406631466,1771998632889,-151.0,0.0001,2]
[406631467,1771998632898,-151.0,0.0001,2]
[406631468,1771998632907,-151.0,0.0001,2]
[406631469,1771998632917,-151.0,0.0001,2]
[406631470,1771998632926,-151.0,0.0001,2]
[406631471,1771998632935,-151.0,0.0001,2]
[406631472,1771998632944,-151.0,0.0001,2]
[406631473,1771998632953,-151.0,0.0001,2]
[406631474,1771998632963,-151.0,0.0001,2]
[406631475,1771998632972,-151.0,0.0001,2]
[406631476,1771998632981,-151.0,0.0001,2]
[406631477,1771998632990,-151.0,0.0001,2]
[406631478,1771998632999,-151.0,0.0001,2]
[406631479,1771998633009,-151.0,0.0001,2]
[406631480,1771998633021,-151.0,0.0001,2]
[406631481,1771998633032,-151.0,0.0001,2]
[406631482,1771998633042,-151.0,0.0001,2]
[406631483,1771998633051,-151.0,0.0001,2]
[406631484,1771998633061,-151.0,0.0001,2]
[406631485,1771998633070,-334.06177392,0.0001,2]
[406631486,1771998633079,-2120.96148083,0.0001,2]
[406631487,1771998633089,-2561.16506735,0.0001,2]
[406631488,1771998633098,-419.0,0.00010007,2]
[406631489,1771998633108,-500.0,0.00010025,2]
[406631490,1771998633117,-419.0,0.00010062,2]
[406631491,1771998633126,-419.0,0.00010117,2]
[406631492,1771998633135,-419.0,0.00010172,2]
[406631493,1771998633144,-419.0,0.00010227,2]
[406631494,1771998633156,-178.17,0.00010254,2]
[406631495,1771998633166,-1000.0,0.00010274,2]
[406631496,1771998633175,-1535.67,0.00010274,2]
[406631497,1771998633184,-419.0,0.00010281,2]
[406631498,1771998633194,-500.0,0.00010299,2]
[406631499,1771998633203,-419.0,0.00010336,2]
[406631500,1771998633212,-419.0,0.00010391,2]
[406631501,1771998633222,-419.0,0.00010446,2]
[406631502,1771998633232,-433.0,0.00010473,2]
[406631503,1771998633241,-419.0,0.000105,2]
[406631504,1771998633250,-1535.67,0.00010548,2]
[406631505,1771998633259,-430.87443356,0.00010555,2]
[406631506,1771998633269,-229.23985944,0.00010573,2]
[406631507,1771998633278,-170.84179196,0.00010573,2]
[406631508,1771998633287,-500.0,0.00010573,2]
[406631509,1771998633296,-510.16012466,0.00010573,2]
[406631510,1771998633305,-500.0,0.00010573,2]
[406631511,1771998633314,-500.0,0.00010573,2]
[406631512,1771998633323,-500.44619551,0.00010573,2]
[406631513,1771998633332,-500.0,0.00010573,2]
[406631514,1771998633341,-572.62923349,0.00010573,2]
[406631515,1771998633351,-500.0,0.00010573,2]
[406631516,1771998633360,-500.0,0.00010573,2]
[406631517,1771998633370,-545.31968949,0.00010573,2]
[406631518,1771998633379,-500.0,0.00010573,2]
[406631519,1771998633388,-500.0,0.00010573,2]
[406631520,1771998633397,-500.0,0.00010573,2]
[406631521,1771998633406,-500.0,0.00010573,2]
[406631522,1771998633415,-501.10722451,0.00010573,2]
[406631523,1771998633425,-500.91721615,0.00010573,2]
[406631524,1771998633434,-500.0,0.00010573,2]
[406631525,1771998633443,-500.0,0.00010573,2]
[406631526,1771998633452,-501.41062027,0.00010573,2]
[406631527,1771998633462,-500.0,0.00010573,2]
[406631528,1771998633471,-500.0,0.00010573,2]
[406631529,1771998633480,-500.0,0.00010573,2]
[406631530,1771998633490,-500.0,0.00010573,2]
[406631531,1771998633499,-547.16316781,0.00010573,2]
[406631532,1771998633508,-405.10641221,0.00010573,2]
[406631533,1771998633517,-500.0,0.00010573,2]
[406631534,1771998633526,-500.0,0.00010573,2]
[406631535,1771998633535,-500.0,0.00010573,2]
[406631536,1771998633545,-500.0,0.00010573,2]
[406631537,1771998633554,-500.0,0.00010573,2]
[406631538,1771998633563,-500.0,0.00010573,2]
[406631539,1771998633572,-500.0,0.00010573,2]
[406631540,1771998633582,-500.0,0.00010573,2]
[406631541,1771998633591,-178.17,0.0001072,2]
[406631542,1771998633601,-1535.67,0.00010822,2]
[406631543,1771998633610,-500.0,0.00010847,2]
[406631544,1771998633620,-250.0,0.0001086,2]
[406631545,1771998633630,-3292.0,0.00010938,2]
[406631546,1771998633639,-150.0,0.00010959,2]
[406631547,1771998633648,-166.66,0.00010959,2]
[406631548,1771998633658,-166.66,0.00011068,2]
[406631549,1771998633667,-1535.67,0.00011096,2]
[406631550,1771998633677,-500.0,0.00011098,2]
[406631551,1771998633687,-181.73011201,0.00011098,2]
[406631552,1771998633696,-267.67430403,0.00011098,2]
[406631553,1771998633705,-500.0,0.00011098,2]
[406631554,1771998633714,-500.0,0.00011098,2]
[406631555,1771998633723,-364.00167437,0.00011098,2]
[406631556,1771998633732,-500.0,0.00011098,2]
[406631557,1771998633741,-43644.88609126,0.00011099,2]
[406631558,1771998633751,-43644.88609117,0.00011099,2]
[406631559,1771998633760,-43644.88609117,0.00011099,2]
[406631560,1771998633770,-31876.37580025,0.00011099,2]
[406631561,1771998633780,-31876.37580021,0.00011099,2]
[406631562,1771998633790,-31876.37580021,0.00011099,2]
[406631563,1771998633799,-294.60808813,0.00011121,2]
[406631564,1771998633808,-1003.13992045,0.00011121,2]
[406631565,1771998633818,-1000.0,0.00011121,2]
[406631566,1771998633828,-1087.91904641,0.00011121,2]
[406631567,1771998633838,-1000.0,0.00011121,2]
[406631568,1771998633849,-1000.0,0.00011121,2]
[406631569,1771998633859,-1000.0,0.00011121,2]
[406631570,1771998633868,-504.64062165,0.00011121,2]
[406631571,1771998633878,-1000.0,0.00011121,2]
[406631572,1771998633889,-1000.0,0.00011121,2]
[406631573,1771998633898,-1000.0,0.00011121,2]
[406631574,1771998633907,-329.05551487,0.00011121,2]
[406631575,1771998633917,-1000.0,0.00011121,2]
[406631576,1771998633927,-1000.0,0.00011121,2]
[406631577,1771998633935,-1000.0,0.00011121,2]
[406631578,1771998633945,-1000.0,0.00011121,2]
[406631579,1771998633955,-502.60687673,0.00011121,2]
[406631580,1771998633964,-1000.0,0.00011121,2]
[406631581,1771998633973,-441.36027975,0.00011121,2]
[406631582,1771998633982,-1000.0,0.00011121,2]
[406631583,1771998633992,-1000.0,0.00011121,2]
[406631584,1771998634001,-500.0,0.00011121,2]
[406631585,1771998634011,-166.66,0.00011178,2]
[406631586,1771998634021,-178.17,0.00011186,2]
[406631587,1771998634030,-285.75,0.00011201,2]
[406631588,1771998634041,-166.66,0.00011288,2]
[406631589,1771998634050,-1000.0,0.00011301,2]
[406631590,1771998634059,-1535.67,0.0001137,2]
[406631591,1771998634068,-500.0,0.00011395,2]
[406631592,1771998634078,-166.66,0.00011397,2]
[406631593,1771998634087,-166.66,0.00011507,2]
[406631594,1771998634098,-3846.59,0.00011507,2]
[406631595,1771998634107,-736.0,0.0001152,2]
[406631596,1771998634116,-1535.67,0.00011644,2]
[406631597,1771998634126,-178.17,0.00011652,2]
[406631598,1771998634135,-1500.0,0.00011668,2]
[406631599,1771998634147,-1500.0,0.00011668,2]
[406631600,1771998634157,-1500.0,0.00011668,2]
[406631601,1771998634166,-691.55545015,0.00011668,2]
[406631602,1771998634175,-1500.0,0.00011668,2]
[406631603,1771998634184,-1500.0,0.00011668,2]
[406631604,1771998634194,-644.49133237,0.00011668,2]
[406631605,1771998634203,-502.84279961,0.00011668,2]
[406631606,1771998634213,-1078.41524118,0.00011668,2]
[406631607,1771998634224,-1500.0,0.00011668,2]
[406631608,1771998634233,-1552.26713891,0.00011668,2]
[406631609,1771998634243,-1500.0,0.00011668,2]
[406631610,1771998634253,-1500.0,0.00011668,2]
[406631611,1771998634264,-1500.0,0.00011668,2]
[406631612,1771998634273,-500.0,0.00011669,2]
[406631613,1771998634283,-31876.37580021,0.00011688,2]
[406631614,1771998634293,-43644.88609117,0.00011688,2]
[406631615,1771998634302,-1535.67,0.00011918,2]
[406631616,1771998634311,-500.0,0.00011943,2]
[406631617,1771998634321,-4609.0,0.00012032,2]
[406631618,1771998634330,-25516.31,0.00012055,2]
[406631619,1771998634340,-178.17,0.00012118,2]
[406631620,1771998634349,-313.868069,0.00012138,2]
[406631621,1771998634359,-1535.67,0.00012192,2]
[406631622,1771998634368,-2032.43213316,0.00012216,2]
[406631623,1771998634377,-2032.17005738,0.00012216,2]
[406631624,1771998634386,-879.24828968,0.00012216,2]
[406631625,1771998634396,-2000.0,0.00012216,2]
[406631626,1771998634405,-503.88046102,0.00012216,2]
[406631627,1771998634414,-2000.0,0.00012216,2]
[406631628,1771998634423,-2000.0,0.00012216,2]
[406631629,1771998634432,-2000.0,0.00012216,2]
[406631630,1771998634442,-449.38639751,0.00012216,2]
[406631631,1771998634451,-500.0,0.00012217,2]
[406631632,1771998634461,-1000.0,0.00012329,2]
[406631633,1771998634471,-10372.974176,0.00012336,2]
[406631634,1771998634480,-1535.67,0.00012466,2]
[406631635,1771998634490,-500.0,0.00012491,2]
[406631636,1771998634500,-178.17,0.00012584,2]
[406631637,1771998634510,-2422.908882,0.0001259,2]
[406631638,1771998634520,-1252.0,0.00012671,2]
[406631639,1771998634529,-719.45005245,0.00012715,2]
[406631640,1771998634539,-31876.37580021,0.00012723,2]
[406631641,1771998634549,-43644.88609117,0.00012723,2]
[406631642,1771998634558,-1535.67,0.0001274,2]
[406631643,1771998634567,-2500.0,0.00012764,2]
[406631644,1771998634577,-2500.0,0.00012764,2]
[406631645,1771998634587,-2500.0,0.00012764,2]
[406631646,1771998634597,-2500.0,0.00012764,2]
[406631647,1771998634607,-500.0,0.00012765,2]
[406631648,1771998634617,-150.0,0.00012829,2]
[406631649,1771998634627,-1535.78,0.00013014,2]
[406631650,1771998634636,-500.0,0.00013039,2]
[406631651,1771998634646,-2120.96148081,0.00013179,2]
[406631652,1771998634655,-6453.0,0.00013235,2]
[406631653,1771998634665,-3000.0,0.00013312,2]
[406631654,1771998634674,-3000.0,0.00013312,2]
[406631655,1771998634684,-2500.0,0.00013312,2]
[406631656,1771998634693,-3000.0,0.00013312,2]
[406631657,1771998634703,-500.0,0.00013313,2]
[406631658,1771998634712,-12910.90231939,0.00013561,2]
[406631659,1771998634721,-500.0,0.00013587,2]
[406631660,1771998634731,-500.0,0.00013698,2]
[406631661,1771998634741,-500.0,0.00013698,2]
[406631662,1771998634750,-500.0,0.00013698,2]
[406631663,1771998634759,-500.0,0.00013698,2]
[406631664,1771998634769,-500.0,0.00013698,2]
[406631665,1771998634778,-500.0,0.00013698,2]
[406631666,1771998634788,-500.0,0.00013698,2]
[406631667,1771998634798,-500.0,0.00013698,2]
[406631668,1771998634807,-500.0,0.00013698,2]
[406631669,1771998634817,-180.41605174,0.00013698,2]
[406631670,1771998634826,-500.0,0.00013698,2]
[406631671,1771998634835,-500.0,0.00013698,2]
[406631672,1771998634846,-500.0,0.00013698,2]
[406631673,1771998634855,-500.0,0.00013698,2]
[406631674,1771998634864,-500.0,0.00013698,2]
[406631675,1771998634873,-500.0,0.00013698,2]
[406631676,1771998634882,-500.0,0.00013698,2]
[406631677,1771998634892,-500.0,0.00013698,2]
[406631678,1771998634901,-500.0,0.00013698,2]
[406631679,1771998634910,-1037.7,0.00013698,2]
[406631680,1771998634920,-1037.7,0.00013698,2]
[406631681,1771998634929,-1037.7,0.00013698,2]
[406631682,1771998634938,-1037.7,0.00013698,2]
[406631683,1771998634947,-1037.7,0.00013698,2]
[406631684,1771998634956,-1037.7,0.00013698,2]
[406631685,1771998634965,-1037.7,0.00013698,2]
[406631686,1771998634975,-1037.7,0.00013698,2]
[406631687,1771998634984,-1037.7,0.00013698,2]
[406631688,1771998634993,-1037.7,0.00013698,2]
[406631689,1771998635004,-500.0,0.00013698,2]
[406631690,1771998635013,-500.0,0.00013698,2]
[406631691,1771998635022,-500.0,0.00013698,2]
[406631692,1771998635031,-500.0,0.00013698,2]
[406631693,1771998635040,-500.0,0.00013698,2]
[406631694,1771998635050,-500.0,0.00013698,2]
[406631695,1771998635059,-500.0,0.00013698,2]
[406631696,1771998635069,-500.0,0.00013698,2]
[406631697,1771998635078,-500.0,0.00013698,2]
[406631698,1771998635087,-500.0,0.00013698,2]
[406631699,1771998635096,-500.0,0.00013698,2]
[406631700,1771998635105,-500.0,0.00013698,2]
[406631701,1771998635114,-500.0,0.00013698,2]
[406631702,1771998635123,-500.0,0.00013698,2]
[406631703,1771998635133,-500.0,0.00013698,2]
[406631704,1771998635143,-500.0,0.00013698,2]
[406631705,1771998635156,-500.0,0.00013698,2]
[406631706,1771998635165,-500.0,0.00013698,2]
[406631707,1771998635174,-500.0,0.00013698,2]
[406631708,1771998635183,-500.0,0.00013698,2]
[406631709,1771998635193,-500.0,0.00013698,2]
[406631710,1771998635202,-500.0,0.00013698,2]
[406631711,1771998635211,-500.0,0.00013698,2]
[406631712,1771998635220,-500.0,0.00013698,2]
[406631713,1771998635232,-433.85931145,0.00013698,2]
[406631714,1771998635241,-500.0,0.00013698,2]
[406631715,1771998635251,-500.0,0.00013698,2]
[406631716,1771998635260,-500.0,0.00013698,2]
[406631717,1771998635269,-500.0,0.00013698,2]
[406631718,1771998635279,-500.0,0.00013698,2]
[406631719,1771998635288,-500.0,0.00013698,2]
[406631720,1771998635298,-500.0,0.00013698,2]
[406631721,1771998635307,-500.0,0.00013698,2]
[406631722,1771998635316,-500.0,0.00013698,2]
[406631723,1771998635325,-500.0,0.00013698,2]
[406631724,1771998635335,-1807.69,0.00013698,2]
[406631725,1771998635344,-1807.69,0.00013698,2]
[406631726,1771998635353,-1807.69,0.00013698,2]
[406631727,1771998635363,-1807.69,0.00013698,2]
[406631728,1771998635373,-1807.69,0.00013698,2]
[406631729,1771998635382,-1807.69,0.00013698,2]
[406631730,1771998635391,-1807.69,0.00013698,2]
[406631731,1771998635401,-1807.69,0.00013698,2]
[406631732,1771998635411,-1807.69,0.00013698,2]
[406631733,1771998635420,-1807.69,0.00013698,2]
[406631734,1771998635430,-500.0,0.00013698,2]
[406631735,1771998635441,-519.90244216,0.00013698,2]
[406631736,1771998635452,-1917.41,0.00013698,2]
[406631737,1771998635461,-1917.41,0.00013698,2]
[406631738,1771998635470,-1917.41,0.00013698,2]
[406631739,1771998635490,-1917.41,0.00013698,2]
[406631740,1771998635505,-1917.41,0.00013698,2]
[406631741,1771998635514,-1917.41,0.00013698,2]
[406631742,1771998635523,-1917.41,0.00013698,2]
[406631743,1771998635532,-1917.41,0.00013698,2]
[406631744,1771998635542,-1917.41,0.00013698,2]
[406631745,1771998635551,-1917.41,0.00013698,2]
[406631746,1771998635560,-1917.41,0.00013698,2]
[406631747,1771998635569,-1917.41,0.00013698,2]
[406631748,1771998635579,-1917.41,0.00013698,2]
[406631749,1771998635590,-500.0,0.00013698,2]
[406631750,1771998635600,-500.0,0.00013698,2]
[406631751,1771998635610,-500.0,0.00013698,2]
[406631752,1771998635619,-500.0,0.00013698,2]
[406631753,1771998635628,-1269.22,0.00013698,2]
[406631754,1771998635638,-1269.22,0.00013698,2]
[406631755,1771998635647,-1269.22,0.00013698,2]
[406631756,1771998635656,-500.0,0.00013698,2]
[406631757,1771998635665,-1269.22,0.00013698,2]
[406631758,1771998635675,-500.0,0.00013698,2]
[406631759,1771998635684,-1269.22,0.00013698,2]
[406631760,1771998635816,-500.0,0.00013698,2]
[406631761,1771998635827,-1269.22,0.00013698,2]
[406631762,1771998635837,-500.0,0.00013698,2]
[406631763,1771998635847,-1269.22,0.00013698,2]
[406631764,1771998635855,-500.0,0.00013698,2]
[406631765,1771998635864,-500.0,0.00013698,2]
[406631766,1771998635873,-1269.22,0.00013698,2]
[406631767,1771998635882,-1269.22,0.00013698,2]
[406631768,1771998635892,-1269.22,0.00013698,2]
[406631769,1771998635901,-1269.22,0.00013698,2]
[406631770,1771998635910,-746.62,0.00013698,2]
[406631771,1771998635920,-1269.22,0.00013698,2]
[406631772,1771998635929,-746.62,0.00013698,2]
[406631773,1771998635938,-1269.22,0.00013698,2]
[406631774,1771998635947,-746.62,0.00013698,2]
[406631775,1771998635956,-746.62,0.00013698,2]
[406631776,1771998635965,-746.62,0.00013698,2]
[406631777,1771998635974,-746.62,0.00013698,2]
[406631778,1771998635983,-746.62,0.00013698,2]
[406631779,1771998635992,-746.62,0.00013698,2]
[406631780,1771998636002,-746.62,0.00013698,2]
[406631781,1771998636012,-746.62,0.00013698,2]
[406631782,1771998636021,-500.0,0.00013698,2]
[406631783,1771998636030,-500.0,0.00013698,2]
[406631784,1771998636041,-500.0,0.00013698,2]
[406631785,1771998636050,-500.0,0.00013698,2]
[406631786,1771998636059,-500.0,0.00013698,2]
[406631787,1771998636069,-500.0,0.00013698,2]
[406631788,1771998636077,-500.0,0.00013698,2]
[406631789,1771998636086,-500.0,0.00013698,2]
[406631790,1771998636095,-500.0,0.00013698,2]
[406631791,1771998636104,-500.0,0.00013698,2]
[406631792,1771998636113,-500.0,0.00013698,2]
[406631793,1771998636123,-500.0,0.00013698,2]
[406631794,1771998636132,-500.0,0.00013698,2]
[406631795,1771998636142,-500.0,0.00013698,2]
[406631796,1771998636152,-500.0,0.00013698,2]
[406631797,1771998636163,-500.0,0.00013698,2]
[406631798,1771998636172,-500.0,0.00013698,2]
[406631799,1771998636181,-500.0,0.00013698,2]
[406631800,1771998636191,-500.0,0.00013698,2]
[406631801,1771998636200,-500.0,0.00013698,2]
[406631802,1771998636210,-532.53256968,0.00013698,2]
[406631803,1771998636219,-529.93,0.00013698,2]
[406631804,1771998636227,-529.93,0.00013698,2]
[406631805,1771998636239,-529.93,0.00013698,2]
[406631806,1771998636249,-529.93,0.00013698,2]
[406631807,1771998636258,-529.93,0.00013698,2]
[406631808,1771998636267,-529.93,0.00013698,2]
[406631809,1771998636275,-529.93,0.00013698,2]
[406631810,1771998636284,-529.93,0.00013698,2]
[406631811,1771998636293,-529.93,0.00013698,2]
[406631812,1771998636302,-529.93,0.00013698,2]
[406631813,1771998636311,-500.0,0.00013698,2]
[406631814,1771998636321,-500.0,0.00013698,2]
[406631815,1771998636329,-500.0,0.00013698,2]
[406631816,1771998636339,-500.0,0.00013698,2]
[406631817,1771998636348,-500.0,0.00013698,2]
[406631818,1771998636357,-500.0,0.00013698,2]
[406631819,1771998636367,-500.0,0.00013698,2]
[406631820,1771998636376,-500.0,0.00013698,2]
[406631821,1771998636385,-500.0,0.00013698,2]
[406631822,1771998636394,-500.0,0.00013698,2]
[406631823,1771998636403,-500.0,0.00013698,2]